bitfinex/quotes_BTCUSD_20240921
["timestamp","ask_amount","ask_price","bid_price","bid_amount"]
[1726947934315,1.91012367,63295.0,63294.0,0.002652]
[1726947935297,1.94356953,63295.0,63294.0,0.003652]
[1726947939678,1.94556953,63295.0,63294.0,0.003652]
[1726947940334,1.94356953,63295.0,63294.0,0.003652]
[1726947945152,2.10665511,63295.0,63294.0,0.003652]
[1726947945367,2.10865511,63295.0,63294.0,0.003652]
[1726947946274,0.1,63288.0,63287.0,1.0]
[1726947946520,1.15374474,63288.0,63287.0,0.5213238]
[1726947946746,0.892125,63281.0,63280.0,0.000826]
[1726947946975,1.80553867,63281.0,63280.0,0.000826]
[1726947947428,1.85274977,63281.0,63280.0,0.000826]
[1726947948141,1.86674977,63281.0,63280.0,0.001826]
[1726947948380,1.81953867,63281.0,63280.0,0.001826]
[1726947948842,1.8381333,63281.0,63280.0,0.001826]
[1726947949519,1.8241333,63281.0,63280.0,0.000826]
[1726947949733,1.8381333,63281.0,63280.0,0.000826]
[1726947949951,1.88805557,63281.0,63280.0,0.000826]
[1726947950174,1.87405557,63281.0,63280.0,0.000826]
[1726947950452,1.83353867,63281.0,63280.0,0.000826]
[1726947950670,1.81953867,63281.0,63280.0,0.000826]
[1726947950881,1.83253867,63281.0,63280.0,0.000826]
[1726947951796,1.81853867,63281.0,63280.0,0.000826]
[1726947952253,1.83053867,63281.0,63280.0,0.000826]
[1726947955463,1.51448867,63281.0,63280.0,0.000826]
[1726947956532,1.50248867,63281.0,63280.0,0.000826]
[1726947956750,1.50048867,63281.0,63280.0,0.000826]
[1726947956958,1.51248867,63281.0,63280.0,0.000826]
[1726947958507,1.39222867,63281.0,63280.0,0.000826]
[1726947959016,0.66012867,63281.0,63280.0,0.000826]
[1726947959459,0.34407867,63281.0,63280.0,0.000826]
[1726947959676,0.66012867,63281.0,63280.0,0.000826]
[1726947959923,0.023,63281.0,63280.0,0.158853]
[1726947960165,0.023,63281.0,63280.0,0.096826]
[1726947961074,0.158021,63283.0,63280.0,0.096826]
[1726947961300,0.011,63281.0,63280.0,0.096826]
[1726947961745,0.012,63281.0,63280.0,0.096826]
[1726947962006,0.158021,63283.0,63280.0,0.096826]
[1726947962216,0.158021,63283.0,63280.0,0.099826]
[1726947962709,0.158022,63282.0,63280.0,0.099826]
[1726947963143,0.15802,63283.0,63280.0,0.096826]
[1726947964019,0.316026,63286.0,63280.0,0.096826]
[1726947964263,0.158019,63284.0,63280.0,0.101826]
[1726947964483,0.158011,63287.0,63281.0,0.31605]
[1726947964726,0.158013,63286.0,63282.0,0.158022]
[1726947964956,0.001652,63288.0,63284.0,0.158016]
[1726947965190,0.001652,63288.0,63285.0,0.278273]
[1726947965426,0.158011,63287.0,63284.0,0.0954]
[1726947965647,0.001,63286.0,63284.0,0.0954]
[1726947966344,0.158013,63286.0,63284.0,0.0954]
[1726947966622,0.001652,63288.0,63284.0,0.0954]
[1726947966623,0.158015,63285.0,63284.0,0.0954]
[1726947967801,0.158015,63285.0,63284.0,0.0974]
[1726947970350,0.474045,63285.0,63284.0,0.0974]
[1726947972135,0.158015,63285.0,63284.0,0.0974]
[1726947973320,0.474045,63285.0,63284.0,0.0974]
[1726947974451,0.95312867,63285.0,63284.0,0.0974]
[1726947975621,0.95878067,63285.0,63284.0,0.0974]
[1726947976316,0.95478067,63285.0,63284.0,0.0954]
[1726947976540,0.95878067,63285.0,63284.0,0.0954]
[1726947976773,0.790125,63281.0,63280.0,0.000826]
[1726947976990,0.474075,63281.0,63280.0,0.000826]
[1726947978438,0.158025,63281.0,63280.0,0.000826]
[1726947978658,0.474075,63281.0,63280.0,0.000826]
[1726947979091,0.158025,63281.0,63280.0,0.000826]
[1726947979577,0.474075,63281.0,63280.0,0.001826]
[1726947979849,0.474075,63281.0,63280.0,0.000826]
[1726947980084,0.158025,63281.0,63280.0,0.001826]
[1726947980556,0.158025,63281.0,63280.0,0.000826]
[1726947980799,0.158025,63281.0,63280.0,0.002826]
[1726947981450,0.158025,63281.0,63280.0,0.003826]
[1726947987808,0.158025,63281.0,63280.0,0.002826]
[1726947988018,0.158025,63281.0,63280.0,0.000826]
[1726947988508,0.158025,63281.0,63280.0,0.001826]
[1726947989927,0.158025,63281.0,63280.0,0.004826]
[1726947990152,0.158025,63281.0,63280.0,0.003826]
[1726947990586,0.158025,63281.0,63280.0,0.005826]
[1726947996245,0.158025,63281.0,63280.0,0.003826]
[1726947996762,0.158025,63281.0,63280.0,0.001826]
[1726947996972,0.158025,63281.0,63280.0,0.003826]
[1726947997199,0.158025,63281.0,63280.0,0.000826]
[1726947997648,0.158025,63281.0,63280.0,0.003826]
[1726947999704,0.001652,63283.0,63281.0,0.158024]
[1726947999922,0.001652,63283.0,63282.0,0.0937]
[1726948001059,0.002652,63283.0,63282.0,0.0937]
[1726948002328,0.001652,63283.0,63282.0,0.0937]
[1726948002527,0.159672,63283.0,63282.0,0.0937]
[1726948002754,0.160672,63283.0,63282.0,0.0937]
[1726948002961,0.476712,63283.0,63282.0,0.0937]
[1726948003162,0.475712,63283.0,63282.0,0.0937]
[1726948003372,0.475712,63283.0,63282.0,0.0967]
[1726948003595,0.475712,63283.0,63282.0,0.0987]
[1726948006786,0.475712,63283.0,63282.0,0.10986762]
[1726948011215,0.475712,63283.0,63282.0,0.10686762]
[1726948011429,0.475712,63283.0,63282.0,0.10886762]
[1726948011637,0.791752,63283.0,63282.0,0.10886762]
[1726948012095,0.791752,63283.0,63282.0,0.10686762]
[1726948012320,0.791752,63283.0,63282.0,0.01316762]
[1726948012535,0.791752,63283.0,63282.0,0.01416762]
[1726948012765,0.791752,63283.0,63282.0,0.01299362]
[1726948012994,0.8389882,63283.0,63282.0,0.01299362]
[1726948013884,0.8389882,63283.0,63282.0,0.01199362]
[1726948014107,0.8419882,63283.0,63282.0,0.01199362]
[1726948014548,0.8399882,63283.0,63282.0,0.01199362]
[1726948015452,0.8389882,63283.0,63282.0,0.01199362]
[1726948015722,0.8399882,63283.0,63282.0,0.01199362]
[1726948016138,0.8389882,63283.0,63282.0,0.01199362]
[1726948016559,0.8399882,63283.0,63282.0,0.01199362]
[1726948017004,0.8389882,63283.0,63282.0,0.01199362]
[1726948017445,0.8399882,63283.0,63282.0,0.01199362]
[1726948018701,0.8389882,63283.0,63282.0,0.01199362]
[1726948018890,0.8399882,63283.0,63282.0,0.01199362]
[1726948019100,0.792752,63283.0,63282.0,0.01199362]
[1726948019307,0.83912559,63283.0,63282.0,0.01199362]
[1726948019520,0.83912559,63283.0,63282.0,0.01399362]
[1726948019753,0.83912559,63283.0,63282.0,0.01499362]
[1726948021926,0.52308857,63283.0,63282.0,0.01499362]
[1726948022178,0.475712,63283.0,63282.0,0.01499362]
[1726948022647,0.52308865,63283.0,63282.0,0.01499362]
[1726948023072,0.475712,63283.0,63282.0,0.01499362]
[1726948024631,0.52308865,63283.0,63282.0,0.10729362]
[1726948024849,0.475712,63283.0,63282.0,0.10729362]
[1726948025065,0.52308865,63283.0,63282.0,0.10729362]
[1726948025786,0.52308865,63283.0,63282.0,0.10529362]
[1726948026042,0.52308865,63283.0,63282.0,0.10429362]
[1726948026258,0.83912865,63283.0,63282.0,0.10529362]
[1726948026470,0.791752,63283.0,63282.0,0.01199362]
[1726948026680,0.791752,63283.0,63282.0,0.000826]
[1726948027304,0.86281686,63283.0,63282.0,0.001826]
[1726948027728,0.791752,63283.0,63282.0,0.01299835]
[1726948027947,0.791752,63283.0,63282.0,0.001826]
[1726948028365,0.791752,63283.0,63282.0,0.01299835]
[1726948028599,0.791752,63283.0,63282.0,0.01199835]
[1726948028822,0.797752,63283.0,63282.0,0.01199835]
[1726948029239,0.791752,63283.0,63282.0,0.01199835]
[1726948029456,0.794752,63283.0,63282.0,0.01199835]
[1726948029663,0.797752,63283.0,63282.0,0.01199835]
[1726948030634,0.86880386,63283.0,63282.0,0.01199835]
[1726948033162,1.34789753,63283.0,63282.0,0.01199835]
[1726948033386,1.34489753,63283.0,63282.0,0.01199835]
[1726948033636,1.34489753,63283.0,63282.0,0.000826]
[1726948034110,1.27384567,63283.0,63282.0,0.000826]
[1726948034878,0.95480567,63283.0,63282.0,0.000826]
[1726948035095,0.95780567,63283.0,63282.0,0.000826]
[1726948035302,0.95780567,63283.0,63282.0,0.0120172]
[1726948035514,0.95480567,63283.0,63282.0,0.000826]
[1726948035726,0.95480567,63283.0,63282.0,0.0120172]
[1726948035959,0.95580567,63283.0,63282.0,0.000826]
[1726948036212,1.02685067,63283.0,63282.0,0.0120172]
[1726948036916,1.02685067,63283.0,63282.0,0.1107172]
[1726948036917,0.002652,63283.0,63282.0,0.1107172]
[1726948037135,0.160672,63283.0,63282.0,0.1107172]
[1726948037562,0.159672,63283.0,63282.0,0.1107172]
[1726948038066,0.002652,63283.0,63282.0,0.1107172]
[1726948038525,0.001652,63283.0,63282.0,0.1107172]
[1726948038982,0.001652,63283.0,63282.0,0.2727392]
[1726948038983,0.002652,63283.0,63282.0,0.2727392]
[1726948039465,0.002652,63283.0,63282.0,0.1187172]
[1726948039690,0.002652,63283.0,63282.0,0.2727392]
[1726948040130,0.003652,63283.0,63282.0,0.2797392]
[1726948040350,0.003652,63283.0,63282.0,0.1217172]
[1726948041317,0.003652,63283.0,63282.0,0.2797392]
[1726948042054,0.003652,63283.0,63282.0,0.1217172]
[1726948048842,0.161672,63283.0,63282.0,0.1217172]
[1726948049062,0.003652,63283.0,63282.0,0.1217172]
[1726948049777,0.161672,63283.0,63282.0,0.1217172]
[1726948050450,0.003652,63283.0,63282.0,0.1217172]
[1726948068134,0.003652,63283.0,63282.0,0.5957842]
[1726948068798,0.003652,63283.0,63282.0,0.2797392]
[1726948069469,0.003652,63283.0,63282.0,0.5957842]
[1726948070543,0.003652,63283.0,63282.0,0.9118292]
[1726948072104,0.003652,63283.0,63282.0,1.0320892]
[1726948073209,0.003652,63283.0,63282.0,0.5957842]
[1726948073834,0.003652,63283.0,63282.0,0.9118292]
[1726948074271,0.003652,63283.0,63282.0,0.5957842]
[1726948075347,0.003652,63283.0,63282.0,0.9118292]
[1726948075597,0.003652,63283.0,63282.0,0.5957842]
[1726948077276,0.003652,63283.0,63282.0,0.9118292]
[1726948077757,0.003652,63283.0,63282.0,0.5957842]
[1726948086450,0.003652,63283.0,63282.0,0.2797392]
[1726948086679,0.003652,63283.0,63282.0,0.5957842]
[1726948092283,0.003652,63283.0,63282.0,0.2797392]
[1726948092765,0.003652,63283.0,63282.0,0.5957842]
[1726948092949,0.003652,63283.0,63282.0,0.2797392]
[1726948094473,0.003652,63283.0,63282.0,0.5957842]
[1726948105200,0.003652,63283.0,63282.0,0.9118292]
[1726948106783,0.003652,63283.0,63282.0,0.5957842]
[1726948107484,0.003652,63283.0,63282.0,0.1217172]
[1726948107669,0.161672,63283.0,63282.0,0.0230172]
[1726948107909,0.003652,63283.0,63282.0,0.0230172]
[1726948110632,0.161672,63283.0,63282.0,0.0230172]
[1726948112645,0.477712,63283.0,63282.0,0.0230172]
[1726948113100,0.161672,63283.0,63282.0,0.0230172]
[1726948113332,0.477712,63283.0,63282.0,0.0230172]
[1726948114721,0.161672,63283.0,63282.0,0.0230172]
[1726948116312,0.003652,63283.0,63282.0,0.0230172]
[1726948118055,0.161672,63283.0,63282.0,0.0230172]
[1726948118502,0.477712,63283.0,63282.0,0.0230172]
[1726948121425,0.161672,63283.0,63282.0,0.0230172]
[1726948121872,0.477712,63283.0,63282.0,0.0230172]
[1726948122689,0.161672,63283.0,63282.0,0.0230172]
[1726948130183,0.477712,63283.0,63282.0,0.0230172]
[1726948130633,0.161672,63283.0,63282.0,0.0230172]
[1726948133553,0.477712,63283.0,63282.0,0.0230172]
[1726948134458,1.07706567,63283.0,63282.0,0.0230172]
[1726948134679,1.1244217,63283.0,63282.0,0.0230172]
[1726948134906,1.1244217,63283.0,63282.0,0.011826]
[1726948134907,1.14809971,63283.0,63282.0,0.011826]
[1726948135361,1.14809971,63283.0,63282.0,0.007826]
[1726948135362,1.14709971,63283.0,63282.0,0.007826]
[1726948135575,1.46213971,63283.0,63282.0,0.000826]
[1726948136438,1.39110567,63283.0,63282.0,0.000826]
[1726948137612,1.4414292,63283.0,63282.0,0.000826]
[1726948138046,1.4394292,63283.0,63282.0,0.000826]
[1726948138296,1.4434292,63283.0,63282.0,0.000826]
[1726948138548,1.4474292,63283.0,63282.0,0.000826]
[1726948138758,1.4424292,63283.0,63282.0,0.000826]
[1726948138979,1.44242077,63283.0,63282.0,0.000826]
[1726948139196,1.44742077,63283.0,63282.0,0.000826]
[1726948139437,1.44142077,63283.0,63282.0,0.000826]
[1726948139886,1.44542077,63283.0,63282.0,0.000826]
[1726948140331,1.44242077,63283.0,63282.0,0.000826]
[1726948140790,1.39910567,63283.0,63282.0,0.000826]
[1726948141231,1.39510567,63283.0,63282.0,0.000826]
[1726948141448,1.39710567,63283.0,63282.0,0.000826]
[1726948141892,1.39710567,63283.0,63282.0,0.001826]
[1726948142115,1.39110567,63283.0,63282.0,0.000826]
[1726948142333,1.39910567,63283.0,63282.0,0.000826]
[1726948142554,1.39510567,63283.0,63282.0,0.000826]
[1726948142990,1.40010567,63283.0,63282.0,0.000826]
[1726948143482,1.39610567,63283.0,63282.0,0.000826]
[1726948143704,1.40110567,63283.0,63282.0,0.000826]
[1726948144144,1.39610567,63283.0,63282.0,0.000826]
[1726948144809,1.40110567,63283.0,63282.0,0.000826]
[1726948145275,1.39110567,63283.0,63282.0,0.000826]
[1726948145717,1.39610567,63283.0,63282.0,0.000826]
[1726948146349,1.39110567,63283.0,63282.0,0.000826]
[1726948146795,1.55919125,63283.0,63282.0,0.000826]
[1726948147218,1.39110567,63283.0,63282.0,0.000826]
[1726948147429,1.39410567,63283.0,63282.0,0.000826]
[1726948147852,1.39710567,63283.0,63282.0,0.000826]
[1726948148956,1.27684567,63283.0,63282.0,0.000826]
[1726948149174,1.39710567,63283.0,63282.0,0.000826]
[1726948149380,1.27684567,63283.0,63282.0,0.000826]
[1726948149921,0.96080567,63283.0,63282.0,0.000826]
[1726948150109,0.96080567,63283.0,63282.0,0.100526]
[1726948150326,0.96080567,63283.0,63282.0,0.11173206]
[1726948150745,0.95480567,63283.0,63282.0,0.11173206]
[1726948150951,0.95780567,63283.0,63282.0,0.11173206]
[1726948151190,0.96080567,63283.0,63282.0,0.11173206]
[1726948151594,0.95780567,63283.0,63282.0,0.11373206]
[1726948152620,0.95780567,63283.0,63282.0,0.11173206]
[1726948152621,0.95480567,63283.0,63282.0,0.11173206]
[1726948152828,0.95480567,63283.0,63282.0,0.11273206]
[1726948153486,0.95480567,63283.0,63282.0,0.11173206]
[1726948153763,0.95580567,63283.0,63282.0,0.11173206]
[1726948153971,0.95580567,63283.0,63282.0,0.11273206]
[1726948154140,0.95480567,63283.0,63282.0,0.11173206]
[1726948154566,0.95580567,63283.0,63282.0,0.11173206]
[1726948160549,0.95480567,63283.0,63282.0,0.11173206]
[1726948160762,0.95580567,63283.0,63282.0,0.11173206]
[1726948169227,0.95480567,63283.0,63282.0,0.11173206]
[1726948169440,0.95580567,63283.0,63282.0,0.11173206]
[1726948169659,0.95580567,63283.0,63282.0,0.100526]
[1726948172315,0.95480567,63283.0,63282.0,0.100526]
[1726948172755,0.95580567,63283.0,63282.0,0.100526]
[1726948177724,0.95580567,63283.0,63282.0,0.11172552]
[1726948178153,0.63976567,63283.0,63282.0,0.11172552]
[1726948191298,0.95580567,63283.0,63282.0,0.01202552]
[1726948191728,0.95580567,63283.0,63282.0,0.000826]
[1726948191999,1.07410598,63283.0,63282.0,0.000826]
[1726948192444,1.38914065,63283.0,63282.0,0.000826]
[1726948192651,0.96080567,63283.0,63282.0,0.001826]
[1726948192891,1.28284567,63283.0,63282.0,0.001826]
[1726948193096,1.30595058,63283.0,63282.0,0.001826]
[1726948193300,1.40595058,63283.0,63282.0,0.001826]
[1726948194193,1.42454417,63283.0,63282.0,0.001826]
[1726948197818,1.40143926,63283.0,63282.0,0.001826]
[1726948201240,1.51958013,63283.0,63282.0,0.001826]
[1726948202544,1.61648013,63283.0,63282.0,0.001826]
[1726948204914,1.49833926,63283.0,63282.0,0.001826]
[1726948205243,1.61648013,63283.0,63282.0,0.001826]
[1726948205398,1.49833926,63283.0,63282.0,0.001826]
[1726948205617,1.61648013,63283.0,63282.0,0.001826]
[1726948205825,1.61643447,63283.0,63282.0,0.001826]
[1726948206559,1.49833926,63283.0,63282.0,0.001826]
[1726948207851,1.61643447,63283.0,63282.0,0.001826]
[1726948208069,1.49833926,63283.0,63282.0,0.001826]
[1726948209037,1.54286404,63283.0,63282.0,0.001826]
[1726948209546,1.49833926,63283.0,63282.0,0.001826]
[1726948211203,1.59279518,63283.0,63282.0,0.001826]
[1726948211607,1.40143926,63283.0,63282.0,0.001826]
[1726948211814,1.49589056,63283.0,63282.0,0.001826]
[1726948212209,1.40143926,63283.0,63282.0,0.001826]
[1726948212410,1.495892,63283.0,63282.0,0.001826]
[1726948212858,1.40143926,63283.0,63282.0,0.001826]
[1726948212990,1.49589188,63283.0,63282.0,0.001826]
[1726948213639,1.40143926,63283.0,63282.0,0.001826]
[1726948213801,1.40418519,63283.0,63282.0,0.001826]
[1726948214008,1.49863678,63283.0,63282.0,0.001826]
[1726948214232,1.53512924,63283.0,63282.0,0.001826]
[1726948214671,1.53512911,63283.0,63282.0,0.001826]
[1726948214916,1.44067765,63283.0,63282.0,0.001826]
[1726948216057,1.40418519,63283.0,63282.0,0.001826]
[1726948220331,1.49864706,63283.0,63282.0,0.001826]
[1726948220536,1.40418519,63283.0,63282.0,0.001826]
[1726948222873,1.52226407,63283.0,63282.0,0.001826]
[1726948223247,1.40418519,63283.0,63282.0,0.001826]
[1726948223510,1.52226407,63283.0,63282.0,0.001826]
[1726948223715,1.40418519,63283.0,63282.0,0.001826]
[1726948224329,1.52226407,63283.0,63282.0,0.001826]
[1726948225085,1.40418519,63283.0,63282.0,0.001826]
[1726948225547,1.52226407,63283.0,63282.0,0.001826]
[1726948225761,1.40418519,63283.0,63282.0,0.001826]
[1726948225933,1.52226407,63283.0,63282.0,0.001826]
[1726948226548,1.52229801,63283.0,63282.0,0.001826]
[1726948226932,1.40418519,63283.0,63282.0,0.001826]
[1726948227357,1.52444519,63283.0,63282.0,0.001826]
[1726948227762,1.61894615,63283.0,63282.0,0.001826]
[1726948228156,1.52444519,63283.0,63282.0,0.001826]
[1726948229526,1.64257195,63283.0,63282.0,0.001826]
[1726948232533,1.52444519,63283.0,63282.0,0.001826]
[1726948240861,1.1898116,63283.0,63282.0,0.001826]
[1726948241584,1.1898116,63283.0,63282.0,0.01073873]
[1726948243242,1.5058516,63283.0,63282.0,0.01073873]
[1726948243484,1.1898116,63283.0,63282.0,0.001826]
[1726948243727,1.5058516,63283.0,63282.0,0.001826]
[1726948243979,1.5058516,63283.0,63282.0,0.01073873]
[1726948244233,1.5058516,63283.0,63282.0,0.001826]
[1726948244455,1.1898116,63283.0,63282.0,0.001826]
[1726948244924,1.1898116,63283.0,63282.0,0.01073873]
[1726948244925,1.5058516,63283.0,63282.0,0.01073873]
[1726948245395,1.5058516,63283.0,63282.0,0.001826]
[1726948249123,1.1898116,63283.0,63282.0,0.001826]
[1726948249588,1.5058516,63283.0,63282.0,0.001826]
[1726948250566,1.64273576,63283.0,63282.0,0.001826]
[1726948251044,1.5058516,63283.0,63282.0,0.001826]
[1726948251510,1.5058516,63283.0,63282.0,0.000826]
[1726948251511,1.63580203,63283.0,63282.0,0.000826]
[1726948251747,1.64980203,63283.0,63282.0,0.000826]
[1726948251996,1.5218516,63283.0,63282.0,0.001826]
[1726948252229,1.5078516,63283.0,63282.0,0.000826]
[1726948252474,1.5218516,63283.0,63282.0,0.001826]
[1726948252976,1.5078516,63283.0,63282.0,0.001826]
[1726948253435,1.5218516,63283.0,63282.0,0.001826]
[1726948254142,1.82688761,63283.0,63282.0,0.001826]
[1726948254591,1.66380203,63283.0,63282.0,0.001826]
[1726948254812,1.5218516,63283.0,63282.0,0.001826]
[1726948256410,1.66380203,63283.0,63282.0,0.001826]
[1726948256641,1.4015916,63283.0,63282.0,0.100826]
[1726948257321,1.39884567,63283.0,63282.0,0.100826]
[1726948257554,1.51714484,63283.0,63282.0,0.10976031]
[1726948257781,1.48914484,63283.0,63282.0,0.10876031]
[1726948258028,0.87106484,63283.0,63282.0,0.099826]
[1726948258269,0.28734584,63283.0,63282.0,0.10976031]
[1726948258505,0.65276567,63283.0,63282.0,0.10876031]
[1726948258750,0.65776567,63283.0,63282.0,0.10976031]
[1726948258965,0.65776567,63283.0,63282.0,0.10876031]
[1726948259190,0.64376567,63283.0,63282.0,0.10876031]
[1726948259401,0.64776567,63283.0,63282.0,0.10876031]
[1726948259653,0.65376567,63283.0,63282.0,0.10876031]
[1726948260079,0.64776567,63283.0,63282.0,0.10876031]
[1726948260296,0.65276567,63283.0,63282.0,0.10876031]
[1726948261404,0.72373163,63283.0,63282.0,0.10876031]
[1726948262043,1.03977163,63283.0,63282.0,0.10876031]
[1726948262516,0.96880567,63283.0,63282.0,0.10876031]
[1726948263670,1.03976269,63283.0,63282.0,0.10876031]
[1726948263892,0.96880567,63283.0,63282.0,0.10876031]
[1726948265668,1.28484567,63283.0,63282.0,0.10876031]
[1726948266109,1.37946063,63283.0,63282.0,0.099826]
[1726948266590,1.28484567,63283.0,63282.0,0.099826]
[1726948267018,1.37944895,63283.0,63282.0,0.099826]
[1726948267246,1.28484567,63283.0,63282.0,0.099826]
[1726948268820,1.40311438,63283.0,63282.0,0.099826]
[1726948277634,1.40311438,63283.0,63282.0,0.000826]
[1726948277858,1.28484567,63283.0,63282.0,0.000826]
[1726948278099,1.30311162,63283.0,63282.0,0.000826]
[1726948278535,1.18484567,63283.0,63282.0,0.000826]
[1726948282953,1.18649767,63283.0,63282.0,0.000826]
[1726948284296,1.28649767,63283.0,63282.0,0.000826]
[1726948292402,1.28649767,63283.0,63282.0,0.099726]
[1726948303043,1.08872832,63283.0,63282.0,0.099726]
[1726948303291,0.97045767,63283.0,63282.0,0.10864797]
[1726948303531,1.06507421,63283.0,63282.0,0.10864797]
[1726948305001,1.04142042,63283.0,63282.0,0.10864797]
[1726948305208,0.97045767,63283.0,63282.0,0.10864797]
[1726948305458,0.97045767,63283.0,63282.0,0.099726]
[1726948310166,1.28649767,63283.0,63282.0,0.099726]
[1726948310358,1.38111421,63283.0,63282.0,0.099726]
[1726948315965,1.28649767,63283.0,63282.0,0.099726]
[1726948320609,1.38109849,63283.0,63282.0,0.099726]
[1726948321028,1.38109849,63283.0,63282.0,0.000826]
[1726948321244,1.28649767,63283.0,63282.0,0.000826]
[1726948322001,1.28924834,63283.0,63282.0,0.000826]
[1726948349460,1.72554834,63283.0,63282.0,0.000826]
[1726948349671,1.72279767,63283.0,63282.0,0.000826]
[1726948351420,1.88452325,63283.0,63282.0,0.000826]
[1726948352323,1.87952325,63283.0,63282.0,0.000826]
[1726948352745,1.89152325,63283.0,63282.0,0.000826]
[1726948353172,1.87952325,63283.0,63282.0,0.000826]
[1726948353647,1.89152325,63283.0,63282.0,0.000826]
[1726948353864,2.23256325,63283.0,63282.0,0.000826]
[1726948354077,1.89352325,63283.0,63282.0,0.000826]
[1726948354533,1.90752325,63283.0,63282.0,0.000826]
[1726948354784,1.89352325,63283.0,63282.0,0.000826]
[1726948354990,1.90752325,63283.0,63282.0,0.000826]
[1726948355629,1.93452325,63283.0,63282.0,0.000826]
[1726948356311,1.92152325,63283.0,63282.0,0.000826]
[1726948356536,1.93552325,63283.0,63282.0,0.000826]
[1726948356783,1.93552325,63283.0,63280.0,1e-06]
[1726948356784,1.422225,63281.0,63280.0,1e-06]
[1726948357005,2.02432867,63281.0,63280.0,1e-06]
[1726948358196,2.03832867,63281.0,63280.0,1e-06]
[1726948358410,2.03832867,63281.0,63274.0,0.000826]
[1726948358411,1.66762,63275.0,63274.0,0.000826]
[1726948358638,1.99175925,63275.0,63274.0,0.000826]
[1726948359260,2.33460964,63275.0,63274.0,0.000826]
[1726948359896,2.34760964,63275.0,63274.0,0.000826]
[1726948360985,2.36060964,63275.0,63274.0,0.000826]
[1726948361872,2.33460964,63275.0,63274.0,0.000826]
[1726948362139,0.102,63273.0,63267.0,0.0045557]
[1726948362372,0.694432,63268.0,63267.0,0.0045557]
[1726948362843,1.642777,63268.0,63267.0,0.0045557]
[1726948363944,1.656777,63268.0,63267.0,0.0045557]
[1726948365068,1.670777,63268.0,63267.0,0.0045557]
[1726948365500,2.0158894,63268.0,63267.0,0.0045557]
[1726948365702,1.9878894,63268.0,63267.0,0.0045557]
[1726948366126,2.0158894,63268.0,63267.0,0.0045557]
[1726948366388,2.0388894,63268.0,63267.0,0.0045557]
[1726948366606,2.0248894,63268.0,63267.0,0.0045557]
[1726948366836,2.0388894,63268.0,63267.0,0.0045557]
[1726948367502,2.0248894,63268.0,63267.0,0.0045557]
[1726948367758,2.0388894,63268.0,63267.0,0.0045557]
[1726948368632,2.0528894,63268.0,63267.0,0.0045557]
[1726948370260,2.05564105,63268.0,63267.0,0.0045557]
[1726948371642,2.17348706,63268.0,63267.0,0.0045557]
[1726948372729,2.17981806,63268.0,63267.0,0.0045557]
[1726948374133,2.18181806,63268.0,63267.0,0.0045557]
[1726948374984,2.18178653,63268.0,63267.0,0.0045557]
[1726948375415,2.17978653,63268.0,63267.0,0.0045557]
[1726948376493,2.06397205,63268.0,63267.0,0.0045557]
[1726948376673,2.06197205,63268.0,63267.0,0.0045557]
[1726948380765,1.77862647,63268.0,63267.0,0.0045557]
[1726948380999,2.0166785,63268.0,63267.0,0.0045557]
[1726948385199,1.89888647,63268.0,63267.0,0.0045557]
[1726948391560,1.77862647,63268.0,63267.0,0.0045557]
[1726948391772,1.89888647,63268.0,63267.0,0.0952557]
[1726948392006,1.55738617,63268.0,63267.0,0.0952557]
[1726948392233,1.51023521,63268.0,63267.0,0.0952557]
[1726948392445,1.62775443,63268.0,63267.0,0.0952557]
[1726948392658,1.62142343,63268.0,63267.0,0.0952557]
[1726948393291,1.62142582,63268.0,63267.0,0.0952557]
[1726948393531,1.64498678,63268.0,63267.0,0.0952557]
[1726948393766,1.55068882,63268.0,63267.0,0.0952557]
[1726948393986,1.64498678,63268.0,63267.0,0.0952557]
[1726948394882,1.55068882,63268.0,63267.0,0.0952557]
[1726948395107,1.81318188,63268.0,63267.0,0.0952557]
[1726948395541,1.69530718,63268.0,63267.0,0.0952557]
[1726948396833,2.01142218,63268.0,63267.0,0.0045557]
[1726948397050,2.03442218,63268.0,63267.0,0.0045557]
[1726948399406,2.17577853,63268.0,63267.0,0.0045557]
[1726948400250,2.03442218,63268.0,63267.0,0.0045557]
[1726948401342,2.03442218,63268.0,63267.0,0.0952557]
[1726948411537,1.71830718,63268.0,63267.0,0.0952557]
[1726948411988,2.03442218,63268.0,63267.0,0.0952557]
[1726948413123,1.89255541,63268.0,63267.0,0.0952557]
[1726948414362,1.57644041,63268.0,63267.0,0.0952557]
[1726948415051,1.89255541,63268.0,63267.0,0.0952557]
[1726948415267,1.55344041,63268.0,63267.0,0.0952557]
[1726948415903,1.69532528,63268.0,63267.0,0.0952557]
[1726948416121,1.53944041,63268.0,63267.0,0.0952557]
[1726948416368,1.41918041,63268.0,63267.0,0.0952557]
[1726948416585,1.68132397,63268.0,63267.0,0.0952557]
[1726948416796,1.69257238,63268.0,63267.0,0.0952557]
[1726948417467,1.66457238,63268.0,63267.0,0.0952557]
[1726948417761,1.67857238,63268.0,63267.0,0.0952557]
[1726948417949,1.66457238,63268.0,63267.0,0.0952557]
[1726948418394,1.67557238,63268.0,63267.0,0.0962557]
[1726948419481,1.70034413,63268.0,63267.0,0.0962557]
[1726948419691,1.68634413,63268.0,63267.0,0.0962557]
[1726948420120,1.69734413,63268.0,63267.0,0.0962557]
[1726948421171,1.69732393,63268.0,63267.0,0.0962557]
[1726948421365,1.55546057,63268.0,63267.0,0.0962557]
[1726948430270,1.55546057,63268.0,63267.0,0.0912557]
[1726948434706,1.69730877,63268.0,63267.0,0.0912557]
[1726948435288,1.55546057,63268.0,63267.0,0.0912557]
[1726948435644,1.69730877,63268.0,63267.0,0.0912557]
[1726948436045,1.69730877,63268.0,63267.0,0.0920817]
[1726948437408,1.70005976,63268.0,63267.0,0.0920817]
[1726948438314,1.55821156,63268.0,63267.0,0.0920817]
[1726948438893,1.70012569,63268.0,63267.0,0.0920817]
[1726948441680,1.7001225,63268.0,63267.0,0.0920817]
[1726948443024,1.55821156,63268.0,63267.0,0.0920817]
[1726948445532,1.70012752,63268.0,63267.0,0.0920817]
[1726948445768,1.55821156,63268.0,63267.0,0.0920817]
[1726948451283,1.61514999,63268.0,63267.0,0.0920817]
[1726948451734,1.55821156,63268.0,63267.0,0.0920817]
[1726948457539,1.55821156,63268.0,63267.0,0.001826]
[1726948459772,1.55986356,63268.0,63267.0,0.001826]
[1726948460893,1.87597856,63268.0,63267.0,0.001826]
[1726948473470,1.86336318,63268.0,63267.0,0.001826]